bitfinex/quotes_ETHUSD_20250415
["timestamp","ask_amount","ask_price","bid_price","bid_amount"]
[1744695726631,11.44652,1644.9,1644.5,6.08083]
[1744695726799,11.44652,1644.9,1644.5,12.16166]
[1744695727000,11.44652,1644.9,1644.6,6.08049]
[1744695727221,13.199082,1644.9,1644.6,6.08049]
[1744695728108,7.119562,1644.9,1644.8,6.07976]
[1744695728304,0.8193,1645.1,1644.8,8.89480204]
[1744695728529,0.8193,1645.1,1644.9,6.07916]
[1744695729331,0.8193,1645.1,1644.8,8.89444204]
[1744695729731,6.1367,1645.3,1645.0,6.07871]
[1744695730038,7.358137,1645.3,1645.1,6.07864]
[1744695731358,6.1367,1645.3,1645.1,6.07864]
[1744695731919,6.1367,1645.3,1645.0,12.15762]
[1744695732146,12.21472,1645.3,1645.0,12.15761]
[1744695732341,12.21472,1645.3,1645.0,6.07871]
[1744695732557,12.21463,1645.3,1645.0,12.1576]
[1744695732758,12.21463,1645.3,1645.0,6.07871]
[1744695733058,6.1367,1645.3,1645.0,12.15761]
[1744695733240,12.21463,1645.3,1645.0,6.07871]
[1744695733443,6.1367,1645.3,1645.0,12.15762]
[1744695733966,6.1367,1645.3,1645.1,6.07864]
[1744695734316,6.1367,1645.3,1645.1,6.07854]
[1744695734513,5.366,1645.3,1645.1,12.15701]
[1744695734763,5.366,1645.3,1645.2,6.07828]
[1744695734965,5.366,1645.3,1645.1,6.07848]
[1744695737473,6.173,1645.9,1645.5,6.07718]
[1744695737672,12.24904,1645.9,1645.5,3.50082004]
[1744695737876,6.07611,1645.8,1645.5,6.07707]
[1744695738255,6.07644,1645.7,1645.4,6.85806]
[1744695738456,6.07695,1645.6,1645.2,0.7806]
[1744695738773,6.07647,1645.7,1645.2,0.7806]
[1744695738774,12.15311,1645.7,1645.3,6.07763]
[1744695738978,6.07647,1645.7,1645.3,14.97043204]
[1744695739173,7.491357,1645.6,1645.3,2.81504204]
[1744695739349,13.568457,1645.6,1645.3,2.81504204]
[1744695739546,12.15467,1645.5,1645.3,2.81504204]
[1744695739855,1.414447,1645.6,1645.3,2.81504204]
[1744695739856,7.491317,1645.6,1645.3,2.81504204]
[1744695740058,13.568317,1645.6,1645.3,2.81504204]
[1744695740262,6.0772,1645.5,1645.3,2.81504204]
[1744695740770,7.491327,1645.6,1645.3,2.81504204]
[1744695740966,6.07721,1645.5,1645.3,2.81504204]
[1744695741360,0.7491657,1645.5,1645.1,2.81504204]
[1744695741682,0.7491657,1645.5,1644.7,6.08012]
[1744695741683,6.0788,1645.1,1644.8,9.72017204]
[1744695741860,6.0788,1645.1,1644.8,3.64054204]
[1744695741861,12.15762,1645.1,1644.8,3.64054204]
[1744695742177,12.15769,1645.1,1644.8,3.64054204]
[1744695742378,6.0788,1645.1,1644.8,9.72029204]
[1744695742586,12.15762,1645.1,1644.8,9.72029204]
[1744695742810,6.07912,1645.0,1644.8,3.64054204]
[1744695743084,12.15838,1645.0,1644.8,2.81504204]
[1744695743284,6.07942,1644.9,1644.6,9.72102204]
[1744695743619,6.07942,1644.9,1644.6,9.72094204]
[1744695743889,12.15903,1644.9,1644.6,9.72094204]
[1744695744091,6.07985,1644.8,1644.6,0.8255]
[1744695744251,12.767905,1644.8,1644.5,2.81504204]
[1744695744456,6.07985,1644.8,1644.5,8.89584204]
[1744695744666,6.07985,1644.8,1644.5,8.89579204]
[1744695744880,12.15995,1644.8,1644.5,8.89579204]
[1744695745080,6.07985,1644.8,1644.5,14.97652204]
[1744695745458,6.07985,1644.8,1644.5,14.97651204]
[1744695745652,6.07985,1644.8,1644.5,8.89577204]
[1744695746994,12.15978,1644.8,1644.5,8.89577204]
[1744695747195,6.08029,1644.7,1644.4,9.67567204]
[1744695747486,12.16067,1644.7,1644.4,9.67567204]
[1744695749004,6.08029,1644.7,1644.4,9.67567204]
[1744695749979,7.295828,1644.8,1644.4,9.67567204]
[1744695750162,7.295828,1644.8,1644.5,6.08082]
[1744695750388,6.07948,1644.9,1644.6,6.0805]
[1744695751123,6.07948,1644.9,1644.6,14.97593204]
[1744695751507,6.07948,1644.9,1644.6,8.89543204]
[1744695751909,6.07948,1644.9,1644.6,14.97582204]
[1744695752406,12.15902,1644.9,1644.6,8.89543204]
[1744695752713,12.15904,1644.9,1644.6,8.89543204]
[1744695752918,12.78459187,1644.9,1644.6,8.89543204]
[1744695753118,6.70503187,1644.9,1644.6,14.97583204]
[1744695753705,6.70503187,1644.9,1644.6,14.97582204]
[1744695753893,0.62555187,1644.9,1644.7,6.08006]
[1744695754092,6.07802,1645.3,1645.0,6.07892]
[1744695754316,6.0784,1645.2,1644.9,6.07939]
[1744695754686,12.15692,1645.2,1644.9,6.07929]
[1744695754886,6.2072,1645.4,1644.8,8.89470204]
[1744695754887,6.07871,1645.1,1644.8,8.89470204]
[1744695755184,12.15766,1645.1,1644.8,8.89470204]
[1744695755815,12.15766,1645.1,1644.8,8.89469204]
[1744695755986,6.07871,1645.1,1644.8,8.89469204]
[1744695756186,12.28482,1645.4,1644.8,8.89469204]
[1744695756394,6.07908,1645.0,1644.8,2.81504204]
[1744695757218,12.97436,1645.1,1644.8,2.81504204]
[1744695757516,6.89532,1645.1,1644.8,8.89468204]
[1744695757885,12.97419,1645.1,1644.8,8.89468204]
[1744695758523,0.8165,1645.1,1644.8,2.81504204]
[1744695758688,12.93357,1645.3,1645.0,6.07878]
[1744695758888,6.07831,1645.2,1644.9,12.15858]
[1744695759419,12.93372,1645.3,1645.0,6.079]
[1744695759716,6.85545,1645.3,1645.0,6.07891]
[1744695760432,12.93353,1645.3,1645.0,6.07891]
[1744695760798,6.07795,1645.3,1645.0,12.94533]
[1744695761099,11.51362,1645.4,1645.1,6.07851]
[1744695761300,11.51362,1645.4,1645.1,12.15707]
[1744695761527,5.436,1645.4,1645.2,6.07813]
[1744695761712,5.436,1645.4,1645.3,6.07791]
[1744695762136,5.436,1645.4,1645.3,6.84481]
[1744695762698,6.07693,1645.6,1645.3,12.9226]
[1744695763437,13.4448,1645.6,1645.3,6.84469]
[1744695763733,13.4448,1645.6,1645.3,0.7669]
[1744695764433,13.4448,1645.6,1645.3,6.84475]
[1744695764434,13.44497,1645.6,1645.3,6.84475]
[1744695764629,6.07792,1645.3,1644.9,6.2443]
[1744695764829,6.07829,1645.2,1644.9,12.9669]
[1744695765136,6.07829,1645.2,1644.9,6.88754]
[1744695765332,6.07829,1645.2,1644.9,12.9669]
[1744695765735,12.15612,1645.3,1644.9,12.9669]
[1744695766042,13.915332,1645.3,1644.9,12.9669]
[1744695766237,6.0788,1645.1,1644.8,6.0797]
[1744695766412,6.0788,1645.1,1644.6,5.436]
[1744695766413,0.8158,1645.1,1644.9,12.15861]
[1744695766610,0.8158,1645.1,1644.9,6.07928]
[1744695766839,6.07839,1645.2,1644.9,6.07928]
[1744695767243,6.0787,1645.1,1644.8,12.15932]
[1744695767418,2.575012,1645.3,1644.7,3.61734204]
[1744695767419,8.652952,1645.3,1645.0,6.07892]
[1744695768042,2.575012,1645.3,1645.0,12.15779]
[1744695768242,0.8158,1645.3,1645.0,12.15779]
[1744695768544,18.42322,1645.4,1645.0,12.97929]
[1744695768737,12.34532,1645.4,1645.1,6.07855]
[1744695768913,11.51382,1645.4,1645.1,12.1571]
[1744695769112,6.07664,1645.7,1645.3,2.81504204]
[1744695769314,6.07664,1645.7,1645.4,6.07744]
[1744695769513,12.15325,1645.7,1645.4,6.07744]
[1744695769739,12.15325,1645.7,1645.3,14.97084204]
[1744695770121,6.07681,1645.6,1645.3,14.97084204]
[1744695770518,6.07681,1645.6,1645.3,8.89283204]
[1744695770721,6.07681,1645.6,1645.3,2.81504204]
[1744695770922,0.8315,1645.8,1645.3,8.89293204]
[1744695771124,6.07682,1645.6,1645.3,14.97073204]
[1744695771322,6.07646,1645.7,1645.3,2.81504204]
[1744695771622,6.07646,1645.7,1645.4,12.1548]
[1744695771817,6.07646,1645.7,1645.4,6.07736]
[1744695772643,6.07646,1645.7,1645.3,8.89286204]
[1744695772942,0.8315,1645.8,1645.2,6.89973]
[1744695772943,6.0773,1645.5,1645.2,6.89973]
[1744695773118,12.15321,1645.7,1645.3,6.0777]
[1744695773445,6.0765,1645.7,1645.4,6.07744]
[1744695773644,0.8315,1645.8,1645.3,2.87581606]
[1744695773846,0.8315,1645.8,1645.5,12.92196]
[1744695774142,6.87411,1645.9,1645.6,6.0767]
[1744695774349,0.7981,1645.9,1645.6,6.0767]
[1744695774547,0.7981,1645.9,1645.8,6.07607]
[1744695774748,5.435,1646.0,1645.8,6.07607]
[1744695775042,6.07497,1646.1,1645.8,6.83816]
[1744695775493,12.90764,1646.2,1645.8,12.91408]
[1744695776192,6.0751,1646.1,1645.8,6.83812]
[1744695776356,12.90757,1646.2,1645.9,6.07559]
[1744695776699,6.07497,1646.1,1645.8,12.91409]
[1744695776991,6.07497,1646.1,1645.8,12.91407]
[1744695777191,6.07497,1646.1,1645.8,12.91408]
[1744695777374,6.07499,1646.1,1645.8,12.91406]
[1744695777564,0.11539569,1646.0,1645.8,6.83812]
[1744695777767,12.90766,1646.2,1645.9,6.07563]
[1744695777969,6.83279,1646.2,1645.9,6.07563]
[1744695778167,0.12195874,1646.1,1645.9,6.07563]
[1744695778366,12.90752,1646.2,1645.9,6.07563]
[1744695778703,6.19693874,1646.1,1645.8,6.83812]
[1744695778851,6.19693874,1646.1,1645.9,0.683812]
[1744695779419,0.12195874,1646.1,1645.9,6.759452]
[1744695779777,6.07518,1646.1,1645.7,8.89137204]
[1744695779976,6.07584,1645.9,1645.6,6.90581]
[1744695780176,6.07584,1645.9,1645.6,12.98248]
[1744695780412,0.12195874,1645.8,1645.6,12.98248]
[1744695780915,6.07539,1646.0,1645.7,12.15273]
[1744695781113,0.7581,1646.2,1645.7,2.81504204]
[1744695781316,6.83288,1646.2,1645.9,6.07559]
[1744695781517,6.07499,1646.1,1645.8,12.15202]
[1744695781815,6.07499,1646.1,1645.8,12.15198]
[1744695782118,6.07497,1646.1,1645.8,6.07597]
[1744695782501,6.07497,1646.1,1645.7,8.89138204]
[1744695782502,6.07547,1646.0,1645.7,8.89136204]
[1744695782698,6.83276,1646.2,1645.8,6.07605]
[1744695783022,6.83276,1646.2,1645.8,6.07603]
[1744695783023,6.07506,1646.1,1645.8,6.07603]
[1744695784017,6.83275,1646.2,1645.9,6.07545]
[1744695784172,6.07499,1646.1,1645.9,0.8191]
[1744695785423,6.0751,1646.1,1645.9,0.8191]
[1744695785574,12.90761,1646.2,1645.9,0.8191]
[1744695785770,0.7581,1646.2,1645.9,6.89479]
[1744695785998,52.837,1646.3,1646.0,12.839779]
[1744695786202,52.837,1646.3,1646.0,12.1503]
[1744695786478,6.07474,1646.2,1645.9,0.8191]
[1744695786676,52.837,1646.3,1645.8,6.07596]
[1744695786895,6.07505,1646.1,1645.8,6.07596]
[1744695787073,12.15025,1646.1,1645.7,15.73660204]
[1744695787270,6.0747,1646.2,1645.9,6.0756]
[1744695789013,12.14947,1646.2,1645.8,12.15214]
[1744695789306,6.07469,1646.2,1645.8,6.07576]
[1744695789711,6.07511,1646.1,1645.7,15.73667204]
[1744695789903,6.07511,1646.1,1645.8,6.076]
[1744695790911,6.07511,1646.1,1645.8,6.07596]
[1744695791614,12.15028,1646.1,1645.7,15.73676204]
[1744695791815,6.07625,1645.8,1645.6,3.0]
[1744695792014,12.15263,1645.8,1645.5,0.8113]
[1744695792214,12.15263,1645.8,1645.6,4.0]
[1744695792510,6.07625,1645.8,1645.5,6.88844]
[1744695792807,12.15258,1645.8,1645.5,0.8113]
[1744695793016,0.12532707,1645.7,1645.5,0.8113]
[1744695793711,6.20196707,1645.7,1645.4,0.811]
[1744695793916,6.07699,1645.6,1645.3,2.81504204]
[1744695794144,12.15416,1645.6,1645.3,2.81504204]
[1744695794430,0.12275649,1645.5,1645.4,6.07744]
[1744695794607,0.8152,1645.7,1645.4,12.15488]
[1744695795131,0.12275649,1645.6,1645.5,6.88818]
[1744695795426,12.15239,1645.8,1645.5,0.811]
[1744695795628,0.12275649,1645.6,1645.5,0.811]
[1744695795927,6.07644,1645.7,1645.4,6.07743]
[1744695796237,0.12275649,1645.6,1645.4,6.86423]
[1744695796709,0.12275649,1645.6,1645.5,6.07718]
[1744695797028,6.07645,1645.7,1645.4,6.86423]
[1744695797229,0.12275649,1645.6,1645.4,0.7868]
[1744695797429,6.07729,1645.5,1645.2,12.70911204]
[1744695797637,6.07729,1645.5,1645.2,18.78726204]
[1744695797797,0.1211605,1645.4,1645.2,18.78726204]
[1744695798215,6.07735,1645.5,1645.2,12.70909204]
[1744695798411,0.1211605,1645.3,1645.2,12.70909204]
[1744695798617,6.8922,1645.6,1645.3,6.07784]
[1744695798935,6.8922,1645.6,1645.3,12.15563]
[1744695799325,6.8922,1645.6,1645.3,6.07779]
[1744695799523,6.8922,1645.6,1645.3,12.15558]
[1744695799998,6.8922,1645.6,1645.3,12.15561]
[1744695800205,6.8922,1645.6,1645.3,6.07779]
[1744695800602,0.8153,1645.6,1645.3,6.07791]
[1744695800816,6.89211,1645.6,1645.3,6.07778]
[1744695801502,6.89211,1645.6,1645.2,12.70912204]
[1744695801739,6.07729,1645.5,1645.2,12.70912204]
[1744695801908,6.07729,1645.5,1645.2,17.97141204]
[1744695802106,6.07776,1645.4,1645.1,6.07855]
[1744695802314,6.0777,1645.4,1645.1,6.07855]
[1744695802534,6.90243,1645.3,1645.0,12.92369]
[1744695802743,6.90243,1645.3,1645.0,12.15761]
[1744695803335,6.07848,1645.2,1644.9,8.89442204]
[1744695803517,12.1569,1645.2,1644.9,2.81504204]
[1744695803901,8.200493,1645.3,1644.9,8.89442204]
[1744695804106,6.0783,1645.2,1644.9,14.97368204]
[1744695804336,14.278703,1645.3,1645.0,6.0789]
[1744695804539,8.200493,1645.3,1644.9,2.81504204]
[1744695804842,12.98058,1645.3,1645.0,6.0789]
[1744695805003,6.90248,1645.3,1645.0,6.0789]
[1744695805440,12.98061,1645.3,1645.0,6.0789]
[1744695805605,0.8245,1645.3,1645.0,6.86862]
[1744695805806,8.89154204,1645.7,1645.4,6.07726]
[1744695805807,0.8128,1645.6,1645.4,6.07726]
[1744695806008,6.2248,1645.8,1645.5,6.07706]
[1744695806230,18.37715,1645.8,1645.5,6.07706]
[1744695806735,18.37715,1645.8,1645.4,6.07747]
[1744695806945,6.07661,1645.7,1645.4,6.07742]
[1744695807741,6.07661,1645.7,1645.4,12.15485]
[1744695808142,6.0766,1645.7,1645.4,6.07742]
[1744695808442,6.0766,1645.7,1645.4,12.15485]
[1744695808749,12.30088,1645.8,1645.5,6.07717]
[1744695809633,12.30088,1645.8,1645.5,6.07705]
[1744695810033,5.412,1645.8,1645.6,6.07649]
[1744695810644,5.412,1645.8,1645.7,6.07644]
[1744695811048,6.89729,1646.0,1645.7,8.89111204]
[1744695811049,0.8219,1646.0,1645.7,8.89111204]
[1744695811226,11.4401,1646.1,1645.7,8.89111204]
[1744695811411,13.270898,1646.1,1645.8,6.07604]
[1744695812112,19.346118,1646.1,1645.8,6.07604]
[1744695812311,6.07541,1646.0,1645.7,2.81504204]
[1744695812512,12.1511,1646.0,1645.7,2.81504204]
[1744695813238,6.07573,1645.9,1645.6,6.90559]
[1744695813638,6.07573,1645.9,1645.6,12.98228]
[1744695814317,6.19341882,1645.8,1645.4,9.84878]
[1744695814515,6.07645,1645.7,1645.4,15.92626]
[1744695814718,6.19823143,1645.7,1645.4,15.92619]
[1744695815014,12.27486143,1645.7,1645.4,9.84871]
[1744695815214,6.19823143,1645.7,1645.4,9.84871]
[1744695815426,6.19823143,1645.7,1645.4,15.92614]
[1744695817651,0.12178143,1645.7,1645.4,15.92614]
[1744695817870,6.07703,1645.6,1645.4,0.7713]
[1744695818148,6.07731,1645.5,1645.2,12.94861]
[1744695818352,12.97273,1645.6,1645.2,12.94861]
[1744695818511,0.12178143,1645.4,1645.1,8.89363204]
[1744695818710,12.9727,1645.6,1645.2,6.07813]
[1744695818948,0.12036287,1645.3,1645.2,6.07813]
[1744695819156,6.89576,1645.6,1645.2,6.07813]
[1744695819465,0.8189,1645.8,1645.5,8.89210204]
[1744695819764,6.89508,1645.8,1645.5,6.07706]
[1744695820268,6.07644,1645.7,1645.4,6.07749]
[1744695820681,12.97143,1645.8,1645.4,12.15492]
[1744695820970,8.8502339,1645.8,1645.5,6.07715]
[1744695821259,12.15333,1645.7,1645.3,9.68509204]
[1744695821564,12.15333,1645.7,1645.3,15.76294204]
[1744695822264,12.15333,1645.7,1645.4,6.07754]
[1744695822469,12.15333,1645.7,1645.4,6.07745]
[1744695822470,13.64595839,1645.7,1645.4,6.07745]
[1744695822653,6.07765,1645.4,1645.0,6.84237]
[1744695822972,4.30778043,1645.7,1644.9,0.7634]
[1744695822973,0.8122,1645.3,1644.9,0.7634]
[1744695823262,6.07896,1645.1,1644.8,0.7634]
[1744695823479,12.1577,1645.1,1644.8,6.84298]
[1744695823644,0.11767804,1645.0,1644.8,6.07958]
[1744695823963,0.11767804,1645.0,1644.7,6.08006]
[1744695824170,0.11767804,1645.0,1644.7,12.16012]
[1744695824337,6.83319,1645.0,1644.7,3.0]
[1744695824534,0.7539,1645.0,1644.7,3.0]
[1744695824770,6.83304,1645.0,1644.7,3.0]
[1744695825344,6.83304,1645.0,1644.6,6.08036]
[1744695825574,6.07942,1644.9,1644.6,6.08036]
[1744695826277,6.83298,1645.0,1644.6,12.16074]
[1744695826453,6.07948,1644.9,1644.6,6.08036]
[1744695826645,6.07939,1644.9,1644.5,8.89584204]
[1744695826842,6.0798,1644.8,1644.5,8.89580204]
[1744695827046,6.0798,1644.8,1644.4,9.87021]
[1744695827491,6.0798,1644.8,1644.5,6.08076]
[1744695827648,12.15981,1644.8,1644.4,9.87021]
[1744695827847,0.7539,1645.0,1644.5,6.08081]
[1744695828069,6.07959,1644.9,1644.5,12.16162]
[1744695828475,0.7539,1645.0,1644.5,8.89591204]
[1744695828653,6.8332,1645.0,1644.6,12.16077]
[1744695828975,6.8332,1645.0,1644.6,6.08034]
[1744695829676,6.0795,1644.9,1644.6,6.08034]
[1744695830582,12.15909,1644.9,1644.6,6.08034]
[1744695830778,6.83299,1645.0,1644.6,6.08034]
[1744695831280,6.83299,1645.0,1644.7,6.08002]
[1744695831482,12.9122,1645.0,1644.7,6.08002]
[1744695831703,6.83299,1645.0,1644.7,6.08002]
[1744695831859,0.7539,1645.0,1644.8,6.07943]
[1744695832063,6.1312,1645.3,1645.1,6.07865]
[1744695832294,12.2094,1645.3,1644.9,6.07937]
[1744695832594,6.84321,1645.3,1644.9,6.07928]
[1744695832793,6.07942,1644.9,1644.6,6.08034]
[1744695833167,6.07942,1644.9,1644.6,12.16073]
[1744695833389,6.07942,1644.9,1644.5,3.7828]
[1744695833390,6.1312,1645.0,1644.4,9.70827204]
[1744695833584,6.08006,1644.8,1644.5,3.0]
[1744695833783,6.08006,1644.8,1644.5,9.08087]
[1744695833992,6.08006,1644.8,1644.5,9.08077]
[1744695834290,6.69256,1644.9,1644.5,3.0]
[1744695834490,12.21029,1645.0,1644.5,3.0]
[1744695834491,0.7652,1645.0,1644.5,3.0]
[1744695834697,6.0794,1644.9,1644.6,6.08027]
[1744695834898,6.0794,1644.9,1644.5,9.08077]
[1744695835086,12.15916,1644.9,1644.5,15.16154]
[1744695835285,12.15894,1644.9,1644.6,6.08043]
[1744695835685,6.0794,1644.9,1644.6,6.08043]
[1744695835888,6.07941,1644.9,1644.6,12.16082]
[1744695836383,6.07941,1644.9,1644.5,9.08076]
[1744695836599,6.0798,1644.8,1644.5,15.16152]
[1744695837005,6.07941,1644.9,1644.6,6.08049]
[1744695837190,6.07941,1644.9,1644.6,6.08039]
[1744695837795,6.07941,1644.9,1644.6,12.16078]
[1744695837978,6.07941,1644.9,1644.6,6.08039]
[1744695838179,6.07941,1644.9,1644.6,12.16078]
[1744695838699,6.07941,1644.9,1644.6,6.08039]
[1744695839010,6.07941,1644.9,1644.5,15.16164]
[1744695839011,6.07979,1644.8,1644.5,15.16164]
[1744695839602,6.07941,1644.9,1644.6,6.08027]
[1744695840111,6.07941,1644.9,1644.6,12.16067]
[1744695840291,6.07941,1644.9,1644.6,12.16068]
[1744695840493,12.15901,1644.9,1644.6,6.08048]
[1744695841403,18.29153,1645.0,1644.6,6.08048]
[1744695841604,20.120683,1645.0,1644.7,6.0801]
[1744695841899,6.07954,1644.9,1644.6,6.08048]
[1744695842101,7.962353,1645.0,1644.7,0.7931]
[1744695842406,6.1332,1645.0,1644.8,6.07966]
[1744695843510,6.88301,1645.2,1644.9,6.07939]
[1744695843807,0.8046,1645.2,1645.0,6.0788]
[1744695843995,2.63747,1645.2,1645.0,6.0788]
[1744695844505,2.63747,1645.2,1644.9,12.1586]
[1744695845002,6.8829,1645.2,1644.9,12.1586]
[1744695845212,0.8046,1645.2,1645.0,6.079]
[1744695846308,0.8046,1645.2,1644.9,6.0793]
[1744695846516,0.8046,1645.2,1644.9,12.15856]
[1744695847370,0.8046,1645.2,1645.0,6.079]
[1744695848211,0.8046,1645.2,1645.0,12.158]
[1744695848513,0.8046,1645.2,1645.0,6.07893]
[1744695849079,0.8046,1645.2,1645.0,6.07891]
[1744695850075,0.8046,1645.2,1645.0,12.15781]
[1744695850447,0.8046,1645.2,1645.0,6.0789]
[1744695850779,17.52412,1645.3,1645.0,6.0789]
[1744695850982,5.368,1645.3,1645.1,6.07862]
[1744695853716,11.44593,1645.3,1645.0,12.15781]
[1744695854320,5.368,1645.3,1645.1,6.07864]
[1744695855825,11.44592,1645.3,1645.0,12.15781]
[1744695856027,11.44592,1645.3,1645.0,6.0789]
[1744695856228,13.274829,1645.3,1645.0,6.0789]
[1744695856384,7.196909,1645.3,1645.1,6.0785]
[1744695857720,13.274939,1645.3,1645.0,12.1578]
[1744695857930,7.196909,1645.3,1645.1,6.07864]
[1744695859728,13.274819,1645.3,1645.0,12.15786]
[1744695859930,7.196909,1645.3,1645.1,6.07863]
[1744695860302,5.368,1645.3,1645.1,6.07863]
[1744695860501,11.44598,1645.3,1645.0,12.15786]
[1744695861135,17.52403,1645.3,1645.0,6.07893]
[1744695861303,11.44598,1645.3,1645.0,6.07892]
[1744695861487,11.44598,1645.3,1645.0,12.15783]
[1744695861704,6.07798,1645.3,1645.0,12.15783]
[1744695861904,6.07798,1645.3,1645.1,6.07863]
[1744695862155,12.92086,1645.4,1645.1,6.07863]
[1744695862304,14.212946,1645.4,1645.1,6.07863]
[1744695862738,6.07792,1645.3,1645.0,12.15782]
[1744695863339,6.07958,1644.9,1644.5,6.84503]
[1744695863554,6.08005,1644.8,1644.4,12.16228]
[1744695863858,12.15998,1644.8,1644.4,12.16221]
[1744695864347,6.89088,1644.7,1644.4,6.08109]
[1744695864554,12.97125,1644.7,1644.3,12.92744]
[1744695865256,12.97125,1644.7,1644.3,6.84592]
[1744695865553,12.97125,1644.7,1644.3,6.08152]
[1744695865709,14.805075,1644.7,1644.3,6.08152]
[1744695866064,6.08089,1644.5,1644.2,6.08189]
[1744695866424,0.7684,1644.4,1644.2,6.08189]
[1744695868311,0.7684,1644.4,1644.2,12.16374]
[1744695869041,0.7684,1644.4,1644.2,6.08185]
[1744695870528,0.7684,1644.4,1644.3,6.08161]
[1744695871266,0.7684,1644.4,1644.2,12.16372]
[1744695872255,6.08202,1644.2,1643.9,6.90504]
[1744695872619,0.7779,1644.1,1643.8,6.08334]
[1744695872827,6.85992,1644.2,1643.9,12.16603]
[1744695873025,0.7779,1644.3,1644.0,6.08246]
[1744695873239,8.752286,1644.3,1644.0,6.08246]
[1744695873639,8.752286,1644.3,1643.9,6.08297]
[1744695873838,8.752286,1644.3,1644.0,6.08271]
[1744695874065,11.38232,1644.4,1644.1,6.08222]
[1744695874764,17.46386,1644.4,1644.0,12.93644]
[1744695875237,17.46386,1644.4,1644.1,12.16453]
[1744695875238,11.38232,1644.4,1644.1,12.16453]
[1744695875433,5.301,1644.4,1644.0,6.85383]
[1744695875629,6.08175,1644.3,1644.0,12.93644]
[1744695876059,6.08162,1644.3,1644.0,12.93643]
[1744695876363,11.38225,1644.4,1644.1,6.08229]
[1744695876770,7.913975,1644.7,1644.1,6.08229]
[1744695876771,14.027245,1644.7,1644.4,6.08112]
[1744695876971,18.27377,1644.7,1644.4,6.08112]
[1744695877270,6.08106,1644.5,1644.2,6.08191]
[1744695877458,6.08061,1644.6,1644.3,6.08158]
[1744695877666,6.08099,1644.5,1644.2,6.08191]
[1744695878006,12.16209,1644.5,1644.2,6.08191]
[1744695878163,6.08069,1644.6,1644.3,0.7955]
[1744695878362,6.08069,1644.6,1644.1,9.69279204]
[1744695878363,6.08109,1644.5,1644.1,9.69279204]
[1744695878564,6.08109,1644.5,1644.2,6.08197]
[1744695878948,6.08127,1644.4,1644.1,15.77504204]
[1744695879147,12.16221,1644.5,1644.1,15.77504204]
[1744695879351,12.16209,1644.5,1644.2,6.08198]
[1744695879564,6.08125,1644.4,1644.1,15.77504204]
[1744695880094,0.8122,1643.8,1643.5,6.08453]
[1744695880299,12.19615,1644.0,1643.6,6.08394]
[1744695880445,12.19615,1644.0,1643.5,6.08441]
[1744695880446,6.08352,1643.8,1643.5,6.08441]
[1744695880662,20.106722,1644.0,1643.6,6.08402]
[1744695880982,6.0831,1643.9,1643.6,6.08402]
[1744695881184,12.16635,1643.9,1643.6,6.08402]
[1744695881357,12.16635,1643.9,1643.5,6.08451]
[1744695881358,12.16636,1643.9,1643.5,12.16902]
[1744695881558,6.08346,1643.8,1643.5,6.08451]
[1744695881790,12.16653,1643.9,1643.5,12.16886]
[1744695882057,6.08405,1643.7,1643.3,6.08507]
[1744695882271,0.8122,1643.8,1643.5,6.08441]
[1744695882471,6.89582,1643.8,1643.5,6.08441]
[1744695882976,0.8122,1643.8,1643.6,6.08408]
[1744695883169,5.302,1643.9,1643.6,6.08408]
[1744695883591,11.38525,1643.9,1643.6,6.08408]
[1744695885192,5.302,1643.9,1643.7,6.08379]
[1744695886506,0.45469889,1644.2,1643.7,6.08383]
[1744695886507,6.85675,1644.2,1643.7,6.08383]
[1744695886713,6.85589,1644.4,1644.1,6.0822]
[1744695887207,12.93729,1644.4,1644.1,6.0822]
[1744695887409,12.93729,1644.4,1644.0,6.08267]
[1744695887410,6.08166,1644.3,1644.0,6.08267]
[1744695888108,6.08251,1644.1,1643.9,3.0]
[1744695888412,6.08286,1644.0,1643.7,6.08367]
[1744695888710,6.87771,1643.9,1643.5,6.08448]
[1744695888921,6.87771,1643.9,1643.6,12.16828]
[1744695889209,6.87771,1643.9,1643.6,6.08408]
[1744695889411,12.96099,1643.9,1643.6,6.08408]
[1744695889593,6.87771,1643.9,1643.6,6.08408]
[1744695889800,6.08363,1643.8,1643.5,9.08446]
[1744695890182,6.08363,1643.8,1643.5,9.08443]
[1744695890385,6.08363,1643.8,1643.5,15.16888]
[1744695890822,8.173791,1643.9,1643.6,6.08419]
[1744695891423,14.257121,1643.9,1643.6,6.08419]
[1744695892384,1.4257121,1643.8,1643.6,6.08419]
[1744695892987,7.5092121,1643.8,1643.5,9.08443]
[1744695893186,6.0835,1643.8,1643.5,15.16887]
[1744695893427,6.8777,1643.9,1643.6,6.08417]
[1744695893794,6.8777,1643.9,1643.6,12.16825]
[1744695894000,6.08366,1643.8,1643.5,9.08446]
[1744695894200,6.08366,1643.8,1643.5,15.16891]
[1744695895417,0.7946,1643.9,1643.7,6.08378]
[1744695895643,1.482341,1643.9,1643.7,6.08378]
[1744695896329,1.482341,1643.9,1643.5,3.0]
[1744695896533,6.87785,1643.9,1643.6,6.08409]
[1744695896937,6.87784,1643.9,1643.6,6.08409]
[1744695897436,6.87784,1643.9,1643.6,12.16817]
[1744695897614,6.87784,1643.9,1643.6,12.16818]
[1744695897810,8.173904,1643.9,1643.6,6.08408]
[1744695898011,0.7946,1643.9,1643.7,6.08378]
[1744695898543,0.7946,1643.9,1643.7,12.1675]
[1744695900237,0.7946,1643.9,1643.7,12.16743]
[1744695900546,0.7946,1643.9,1643.7,12.16742]
[1744695901239,0.7946,1643.9,1643.7,6.08371]